bitfinex-derivatives/quotes_SOLF0:USTF0_20250914
["timestamp","ask_amount","ask_price","bid_price","bid_amount"]
[1757849754253,6.49,246.39,246.22,6.83]
[1757849754652,6.49,246.39,246.28,0.02818103]
[1757849761855,272.84,246.48,246.29,6.94]
[1757849762161,9.42201654,246.47,246.29,6.94]
[1757849762458,6.67,246.45,246.29,6.94]
[1757849762659,6.67,246.45,246.36,0.02786452]
[1757849770063,100.0,246.53,246.37,6.94]
[1757849770261,106.67,246.52,246.37,6.94]
[1757849770463,106.75,246.52,246.37,6.94]
[1757849770865,6.67,246.52,246.42,0.02838332]
[1757849771059,29.55,246.52,246.42,0.02838332]
[1757849771966,41.82032735,246.52,246.42,0.02838332]
[1757849772454,75.34032735,246.52,246.42,0.02838332]
[1757849772854,2.74022378,246.51,246.42,0.02838332]
[1757849773162,6.67,246.5,246.42,0.02838332]
[1757849776165,6.67,246.48,246.32,6.94]
[1757849776356,6.70056982,246.48,246.26,6.94]
[1757849776759,6.67,246.48,246.26,6.94]
[1757849777667,0.02840318,246.39,246.26,6.94]
[1757849780071,0.02840318,246.39,246.23,11.46556916]
[1757849780270,0.02840318,246.39,246.25,6.94]
[1757849780571,6.67,246.48,246.25,6.94]
[1757849781166,6.67,246.48,246.35,6.94]
[1757849782071,6.67,246.48,246.39,0.03039964]
[1757849785872,106.61,246.48,246.39,0.03039964]
[1757849786679,6.67,246.48,246.39,0.03039964]
[1757849786873,106.65,246.48,246.39,0.03039964]
[1757849787068,106.63,246.48,246.39,0.03039964]
[1757849787676,6.67,246.48,246.39,0.03039964]
[1757849793476,6.67,246.48,246.4,6.57]
[1757849795281,96.60661705,246.51,246.4,6.57]
[1757849795484,6.98,246.53,246.4,6.57]
[1757849796186,6.98,246.53,246.45,6.57]
[1757849797086,6.98,246.53,246.44,0.02716131]
[1757849799685,6.98,246.53,246.44,6.59716131]
[1757849799884,6.98,246.62,246.44,6.59716131]
[1757849800188,6.98,246.6,246.44,6.59716131]
[1757849800387,6.98,246.6,246.44,6.57]
[1757849800588,6.98,246.6,246.51,0.02615398]
[1757849803695,6.98,246.58,246.51,0.02615398]
[1757849804697,6.98,246.56,246.51,0.02615398]
[1757849804896,6.98,246.54,246.32,6.57]
[1757849805094,6.98,246.52,246.32,6.57]
[1757849805291,6.98,246.52,246.34,6.57]
[1757849805492,6.98,246.52,246.35,6.57]
[1757849805986,6.98,246.5,246.35,6.57]
[1757849806486,0.02568266,246.45,246.35,6.57]
[1757849812512,6.47,246.44,246.3,6.6]
[1757849813310,0.02636867,246.39,246.3,6.6]
[1757849821304,0.02636867,246.39,246.3,37.48]
[1757849821708,0.02636867,246.39,246.3,30.88]
[1757849821911,0.02636867,246.39,246.31,6.46]
[1757849823405,6.76636867,246.39,246.31,6.46]
[1757849825517,0.02636867,246.39,246.31,6.46]
[1757849836415,6.74,246.38,246.31,6.46]
[1757849836619,6.74,246.38,246.18,6.81906264]
[1757849836813,6.74,246.38,246.19,23.66]
[1757849837122,6.74,246.38,246.2,6.46]
[1757849838532,6.74,246.46,246.22,6.46]
[1757849838727,6.74,246.44,246.22,6.46]
[1757849838922,6.74,246.42,246.22,6.46]
[1757849840225,6.74,246.4,246.22,6.46]
[1757849842026,6.74,246.38,246.22,6.46]
[1757849842225,19.22,246.47,246.22,6.46]
[1757849842226,2.74794112,246.37,246.22,6.46]
[1757849842426,6.74,246.36,246.22,6.46]
[1757849842629,18.85036725,246.36,246.22,6.46]
[1757849842823,6.74,246.36,246.22,6.46]
[1757849844425,2.74656368,246.35,246.22,6.46]
[1757849844628,6.74,246.34,246.22,6.46]
[1757849845734,6.74,246.35,246.17,6.46]
[1757849845934,6.74,246.33,246.17,6.46]
[1757849851238,6.87,246.31,246.17,6.46]
[1757849852340,6.87,246.25,246.17,6.46]
[1757849852737,6.87,246.25,246.01,6.8]
[1757849852933,6.87,246.25,246.03,6.8]
[1757849853135,6.87,246.25,246.04,99.96]
[1757849853339,6.87,246.31,246.05,6.8]
[1757849853541,6.87,246.29,246.05,6.8]
[1757849853846,6.87,246.27,246.05,6.8]
[1757849854139,6.87,246.25,246.05,6.8]
[1757849854344,6.87,246.23,246.05,6.8]
[1757849855748,6.87,246.21,246.05,6.8]
[1757849856148,0.0259254,246.15,246.05,6.8]
[1757849856347,6.87,246.14,246.05,6.8]
[1757849858852,0.0259254,246.15,246.05,6.8]
[1757849869356,6.87,246.14,246.05,6.8]
[1757849870556,6.87,246.14,245.95,6.8]
[1757849870761,6.87,246.14,245.96,6.8]
[1757849871557,6.87,246.12,245.96,6.8]
[1757849871958,6.87,246.1,245.96,6.8]
[1757849873154,18.85427199,246.1,245.96,6.8]
[1757849874462,43.09427199,246.1,245.96,6.8]
[1757849874860,18.85427199,246.1,245.96,6.8]
[1757849876664,87.95427199,246.1,245.96,6.8]
[1757849877365,18.85427199,246.1,245.96,6.8]
[1757849880361,6.86,246.04,245.96,6.8]
[1757849883463,0.02563011,246.05,245.96,6.8]
[1757849886071,6.86,246.04,245.96,6.8]
[1757849886470,6.86,246.04,245.89,6.36]
[1757849892580,0.03056401,245.99,245.89,6.36]
[1757849899282,0.03056401,245.99,245.91,6.36]
[1757849902188,0.03056401,245.99,245.93,6.36]
[1757849903686,0.03056401,245.99,245.94,100.08]
[1757849903889,0.03056401,245.99,245.95,6.36]
[1757849906891,0.03056401,245.99,245.95,6.76]
[1757849907586,0.03056401,245.99,245.96,100.06]
[1757849907790,0.03056401,245.99,245.97,6.36]
[1757849908290,0.03056401,245.99,245.97,6.55]
[1757849908490,0.03056401,245.99,245.97,6.95]
[1757849909190,0.03056401,245.99,245.98,6.55]
[1757849910292,0.03056401,245.99,245.98,106.61]
[1757849911393,0.03056401,245.99,245.98,6.55]
[1757849911587,0.03056401,245.99,245.98,45.99]
[1757849915500,0.03056401,245.99,245.98,46.39]
[1757849915900,272.9,246.24,245.99,6.55]
[1757849915901,6.68,246.13,245.99,6.55]
[1757849917100,6.68,246.13,246.04,0.0265526]
[1757849918103,6.68,246.11,246.04,0.0265526]
[1757849922409,6.68,246.09,245.91,6.55]
[1757849922608,6.68,246.07,245.91,6.55]
[1757849922801,6.68,246.05,245.91,6.55]
[1757849947420,6.68,246.05,245.86,24.24757594]
[1757849947617,6.69,246.03,245.87,6.57]
[1757849947828,6.69,246.01,245.87,6.57]
[1757849948027,6.69,245.99,245.87,6.57]
[1757849949927,6.69,245.99,245.82,0.70758314]
[1757849950325,6.69,245.99,245.79,6.57]
[1757849950527,6.69,245.99,245.79,7.27774143]
[1757849953027,14.47,245.99,245.79,7.27774143]
[1757849955726,20.43,245.99,245.79,7.27774143]
[1757849955932,25.21,245.99,245.79,7.27774143]
[1757849956333,6.69,245.98,245.8,6.57]
[1757849961540,6.69,245.98,245.81,6.57]
[1757849962449,6.69,245.98,245.82,62.0]
[1757849962644,6.69,245.98,245.83,6.57]
[1757849963544,6.69,246.05,245.83,89.87]
[1757849963837,6.36,246.06,245.83,89.87]
[1757849964745,6.69,246.05,245.83,89.87]
[1757849964944,6.36,246.06,245.83,89.87]
[1757849965146,6.69,246.05,245.83,89.87]
[1757849965341,6.69,246.05,245.83,6.57]
[1757849979258,18.87,246.05,245.83,6.57]
[1757849984862,18.87,246.05,245.72,6.97]
[1757849985262,18.87,246.05,245.72,7.6778638]
[1757849985867,6.45,246.0,245.72,7.6778638]
[1757849986759,6.45,245.98,245.72,7.6778638]
[1757849986959,6.45,245.98,245.74,6.97]
[1757849990962,6.45,245.96,245.74,6.97]
[1757849991361,6.45,245.96,245.75,6.97]
[1757849992268,6.45,245.96,245.76,6.97]
[1757849993269,6.45,245.96,245.77,6.83]
[1757849996473,6.45,245.96,245.77,4.55609792]
[1757849996670,6.45,245.96,245.8,6.83]
[1757849996871,6.45,245.96,245.82,6.83]
[1757849997072,6.45,245.96,245.83,6.83]
[1757850001473,0.02571685,245.92,245.83,6.83]
[1757850004275,6.92,245.91,245.77,6.41]
[1757850005872,6.92,245.85,245.77,6.41]
[1757850006375,6.92,245.85,245.71,6.41]
[1757850007674,19.33963343,245.85,245.71,6.41]
[1757850007979,6.92,245.85,245.71,6.41]
[1757850008770,18.96036143,245.85,245.71,6.41]
[1757850009079,6.92,245.85,245.71,6.41]
[1757850009273,6.92,245.83,245.61,6.41]
[1757850009480,48.2,245.83,245.61,6.41]
[1757850009675,6.92,245.81,245.63,6.41]
[1757850010378,6.92,245.81,245.65,6.41]
[1757850010572,6.92,245.81,245.65,50.03]
[1757850010874,6.92,245.81,245.66,6.41]
[1757850011579,0.02781276,245.76,245.66,6.41]
[1757850015080,6.92,245.75,245.66,6.41]
[1757850015680,0.02781276,245.76,245.66,6.41]
[1757850016986,0.02781276,245.76,245.68,6.41]
[1757850017488,6.92,245.85,245.68,6.41]
[1757850019092,6.92,245.83,245.68,6.41]
[1757850019884,2.77030229,245.82,245.68,6.41]
[1757850020091,6.92,245.84,245.63,6.41]
[1757850020292,6.92,245.82,245.63,6.41]
[1757850021690,6.92,245.82,245.64,26.74]
[1757850021892,6.92,245.85,245.63,6.41]
[1757850022093,2.77005234,245.84,245.63,6.41]
[1757850022395,6.92,245.86,245.64,6.41]
[1757850022596,19.39275648,245.86,245.64,6.41]
[1757850023190,6.92,245.86,245.64,6.41]
[1757850023590,6.92,245.86,245.65,97.54]
[1757850023895,6.92,245.88,245.64,43.41]
[1757850024196,2.77001498,245.87,245.64,43.41]
[1757850024393,6.92,245.86,245.64,43.41]
[1757850024595,2.77001498,245.85,245.64,43.41]
[1757850024790,6.92,245.87,245.64,6.41]
[1757850024991,6.92,245.85,245.64,6.41]
[1757850025191,6.92,245.83,245.64,6.41]
[1757850025487,6.92,245.83,245.65,6.41]
[1757850027196,6.92,245.85,245.65,6.41]
[1757850027402,2.76902396,245.84,245.65,6.41]
[1757850027696,9.68902396,245.83,245.6,6.41]
[1757850027896,6.92,245.81,245.6,6.41]
[1757850028096,6.74,245.79,245.6,6.41]
[1757850030597,321.77563634,246.08,245.59,0.70828881]
[1757850030598,4.4953612,246.09,245.61,12.2]
[1757850030799,6.95,245.98,245.66,6.36]
[1757850030995,6.95,245.97,245.68,6.36]
[1757850031307,6.95,245.95,245.7,6.36]
[1757850031506,6.95,246.0,245.72,6.36]
[1757850031699,6.95,245.98,245.74,6.36]
[1757850031997,11.0478854,246.01,245.75,6.36]
[1757850031998,6.95,245.96,245.75,6.36]
[1757850033703,273.32,246.07,245.76,62.0]
[1757850033704,6.95,246.03,245.76,62.0]
[1757850033896,6.95,246.03,245.77,6.36]
[1757850034298,6.95,246.03,245.78,105.26]
[1757850034505,6.95,246.03,245.79,6.36]
[1757850035302,6.95,246.05,245.8,105.22]
[1757850035604,2.76642147,246.04,245.8,105.22]
[1757850035805,6.95,246.06,245.81,6.36]
[1757850036006,6.95,246.04,245.81,6.36]
[1757850036900,14.94588112,246.03,245.81,6.36]
[1757850037207,9.71588112,246.02,245.81,6.36]
[1757850037401,6.95,246.0,245.81,6.36]
[1757850037707,64.38,245.99,245.81,6.36]
[1757850037906,6.95,245.98,245.81,6.36]
[1757850041501,6.95,245.98,245.74,45.76]
[1757850041502,64.38,245.99,245.75,6.36]
[1757850041805,9.71598851,245.98,245.75,6.36]
[1757850042000,6.95,245.98,245.75,6.36]
[1757850043307,6.95,245.96,245.75,6.36]
[1757850046811,6.95,245.97,245.77,6.36]
[1757850047104,19.13,245.97,245.77,6.36]
[1757850047311,2.76704329,245.96,245.77,6.36]
[1757850047510,6.95,245.95,245.77,6.36]
[1757850051419,6.95,246.04,245.77,6.36]
[1757850051621,35.95,246.04,245.77,6.36]
[1757850052711,6.95,246.04,245.77,6.36]
[1757850052915,6.95,246.04,245.78,62.0]
[1757850053120,6.95,246.04,245.79,6.36]
[1757850054018,6.95,246.04,245.81,6.86]
[1757850054221,6.95,246.04,245.82,105.02]
[1757850054420,6.95,246.04,245.83,6.86]
[1757850058220,7.04,246.1,245.83,6.86]
[1757850059427,7.04,246.1,245.85,6.54]
[1757850059817,7.04,246.1,245.87,6.54]
[1757850060822,7.04,246.17,245.88,6.54]
[1757850061026,7.04,246.16,245.9,6.54]
[1757850061227,7.04,246.17,245.92,6.54]
[1757850062329,7.04,246.17,245.89,273.12]
[1757850062330,7.04,246.17,245.94,6.54]
[1757850064621,7.04,246.17,245.96,6.54]
[1757850064821,7.04,246.17,245.91,6.54]
[1757850065023,7.04,246.17,245.9,12.2]
[1757850065024,7.04,246.17,245.93,6.54]
[1757850065226,7.04,246.17,245.95,6.54]
[1757850065924,7.04,246.17,245.97,6.54]
[1757850066425,6.41104,246.18,245.98,63.12]
[1757850066625,7.04,246.17,245.98,63.12]
[1757850067126,7.04,246.17,245.99,6.54]
[1757850067625,7.04,246.17,246.0,98.78]
[1757850067820,7.04,246.17,245.99,6.54]
[1757850068427,6.41104,246.18,245.99,111.66]
[1757850069324,7.04,246.17,245.99,111.66]
[1757850069523,7.04,246.17,245.99,6.54]
[1757850071430,7.04,246.17,245.9,6.54]
[1757850071631,19.22,246.17,245.91,104.96]
[1757850071831,7.04,246.15,245.9,6.54]
[1757850072026,12.18,246.17,245.9,6.54]
[1757850072231,2.75106958,246.16,245.91,104.98]
[1757850072433,7.04,246.15,245.91,104.98]
[1757850072632,7.04,246.16,245.91,104.98]
[1757850072841,7.04,246.14,245.9,6.54]
[1757850073139,12.18,246.17,245.92,104.94]
[1757850073334,7.04,246.15,245.92,104.94]
[1757850073539,7.04,246.15,245.9,6.54]
[1757850073540,7.04,246.13,245.9,6.54]
[1757850073730,7.04,246.13,245.9,111.42]
[1757850073932,12.18,246.15,245.9,6.54]
[1757850074138,19.22,246.13,245.9,6.54]
[1757850074337,7.04,246.11,245.9,6.54]
[1757850074537,7.04,246.09,245.9,6.54]
[1757850074733,57.94,246.09,245.9,6.54]
[1757850075333,7.04,246.07,245.9,6.54]
[1757850075533,50.9,246.09,245.89,273.12]
[1757850075840,7.04,246.07,245.89,273.12]
[1757850076033,50.9,246.09,245.89,273.12]
[1757850076234,2.75838459,246.08,245.89,273.12]
[1757850076529,7.04,246.07,245.89,273.12]
[1757850076733,7.04,246.08,245.89,273.12]
[1757850076934,7.04,246.06,245.89,273.12]
[1757850077136,50.9,246.09,245.89,273.12]
[1757850077334,2.75881637,246.08,245.89,273.12]
[1757850077528,7.04,246.07,245.9,6.54]
[1757850082341,7.04,246.07,245.91,104.58]
[1757850082535,7.04,246.07,245.93,6.54]
[1757850085435,7.04,246.07,245.95,6.54]
[1757850085639,7.04,246.07,245.96,43.32]
[1757850086041,7.04,246.07,245.97,6.54]
[1757850098946,76.99,246.16,245.9,6.89]
[1757850099250,21.84241213,246.15,245.9,110.69]
[1757850099445,2.77241213,246.14,245.9,110.69]
[1757850099650,6.88,246.12,245.91,6.89]
[1757850099844,6.88,246.1,245.91,6.89]
[1757850100045,6.88,246.08,245.91,6.89]
[1757850102653,6.88,246.06,245.91,6.89]
[1757850104352,2.77218291,246.05,245.91,6.89]
[1757850104550,38.16,246.06,245.86,6.89]
[1757850104749,9.6521245,246.05,245.86,6.89]
[1757850104951,6.88,246.03,245.86,6.89]
[1757850109058,6.88,246.03,245.88,6.89]
[1757850109751,12.19,246.16,245.88,6.89]
[1757850109752,8.06,246.11,245.88,6.89]
[1757850109958,9.65377644,246.1,245.88,6.89]
[1757850110255,6.88,246.08,245.88,6.89]
[1757850112656,19.18,246.15,245.9,6.51]
[1757850112856,6.99,246.13,245.9,6.51]
[1757850113054,6.99,246.11,245.9,6.51]
[1757850113255,6.99,246.09,245.9,6.51]
[1757850113452,6.99,246.07,245.9,6.51]
[1757850113654,6.99,246.14,245.91,6.51]
[1757850113860,6.99,246.12,245.91,6.51]
[1757850114059,6.99,246.1,245.91,6.51]
[1757850114357,6.99,246.08,245.91,6.51]
[1757850114552,6.99,246.06,245.91,6.51]
[1757850115355,6.99,246.04,245.91,6.51]
[1757850115558,6.99,246.02,245.91,6.51]
[1757850123061,12.19,246.14,245.91,6.51]
[1757850123062,6.72,246.09,245.91,6.51]
[1757850124465,6.72,246.09,245.92,4.55427]
[1757850124662,6.72,246.09,245.93,6.96]
[1757850144380,6.72,246.09,245.85,6.96]
[1757850145085,18.91,246.09,245.85,6.96]
[1757850146886,58.05,246.08,245.85,6.96]
[1757850147084,6.72,246.07,245.85,6.96]
[1757850148493,18.91,246.07,245.85,6.96]
[1757850149292,18.91,246.07,245.78,6.65]
[1757850150290,12.19,246.01,245.78,6.65]
[1757850150592,6.39,245.99,245.78,6.65]
[1757850150994,3.58,245.98,245.78,6.65]
[1757850151189,6.39,245.97,245.78,6.65]
[1757850153591,6.39,245.97,245.79,6.65]
[1757850156096,0.03003984,245.9,245.79,6.65]
[1757850156298,6.39,245.89,245.79,6.65]
[1757850156498,18.45644726,245.89,245.79,6.65]
[1757850156694,6.39,245.89,245.79,6.65]
[1757850159499,18.83687688,245.89,245.79,6.65]
[1757850159899,6.39,245.89,245.79,6.65]
[1757850162804,0.03003984,245.9,245.69,314.04]
[1757850162995,6.39,245.89,245.7,6.65]
[1757850163307,18.60276635,245.89,245.7,6.65]
[1757850170411,6.39,245.88,245.72,6.65]
[1757850174709,6.39,245.88,245.66,6.97]
[1757850175413,6.56,245.86,245.66,6.97]
[1757850175615,6.56,245.86,245.66,4.55427]
[1757850175913,7.36,245.88,245.68,6.97]
[1757850175914,6.56,245.87,245.68,6.97]
[1757850176710,6.56,245.87,245.69,6.97]
[1757850182107,7.06,245.87,245.7,6.95]
[1757850182311,7.06,245.87,245.7,11.50427]
[1757850182614,7.06,245.87,245.71,6.95]
[1757850182815,7.06,245.87,245.73,4.55427]
[1757850183018,7.06,245.87,245.73,6.95]
[1757850184016,7.06,245.87,245.73,4.55427]
[1757850184210,7.06,245.87,245.74,6.95]
[1757850189215,7.06,245.87,245.7,4.55427]
[1757850189417,12.3417994,245.89,245.69,11.50427]
[1757850189613,7.06,245.88,245.71,4.55427]
[1757850189815,7.06,245.91,245.7,4.55427]
[1757850190017,7.06,245.89,245.7,4.55427]
[1757850190317,12.19,245.9,245.69,6.95]
[1757850190318,12.19,245.9,245.69,11.50427]
[1757850190518,7.06,245.89,245.7,4.55427]
[1757850190914,12.19,245.9,245.69,11.50427]
[1757850190915,7.06,245.9,245.69,11.50427]
[1757850191117,7.06,245.89,245.69,11.50427]
[1757850191418,7.06,245.88,245.7,4.55427]
[1757850191618,7.06,245.88,245.72,4.55427]
[1757850191819,7.06,245.88,245.71,4.55427]
[1757850192120,7.06,245.88,245.72,4.55427]
[1757850192321,7.06,245.88,245.71,4.55427]
[1757850192818,7.06,245.88,245.7,4.55427]
[1757850193117,7.06,245.88,245.69,11.50427]
[1757850193315,7.06,245.88,245.71,4.55427]
[1757850193818,7.06,245.88,245.7,4.55427]
[1757850194023,7.06,245.88,245.71,6.95]
[1757850194318,7.06,245.88,245.71,11.50427]
[1757850194519,7.06,245.87,245.71,11.50427]
[1757850194821,7.06,245.88,245.72,4.55427]
[1757850195021,24.63857613,245.89,245.71,11.50427]
[1757850195222,7.06,245.88,245.72,4.55427]
[1757850195521,7.06,245.86,245.73,6.95]
[1757850196625,7.06,245.86,245.73,11.50427]
[1757850196817,17.6,245.87,245.73,11.50427]
[1757850197023,38.74,245.87,245.73,11.50427]
[1757850197318,7.06,245.86,245.73,11.50427]
[1757850197917,7.06,245.85,245.73,6.95]
[1757850198114,7.06,245.85,245.73,11.50427]
[1757850198515,7.06,245.85,245.73,6.95]
[1757850198719,7.06,245.85,245.73,11.50427]
[1757850199427,7.06,245.85,245.75,6.95]
[1757850200734,19.25,245.85,245.72,4.55427]
[1757850200930,19.25,245.84,245.67,4.55427]
[1757850201331,12.19,245.84,245.66,11.50427]
[1757850201631,9.87090747,245.83,245.7,6.95]
[1757850201832,7.06,245.83,245.7,6.95]
[1757850202028,97.46,245.84,245.7,6.95]
[1757850202228,9.87099732,245.83,245.7,6.95]
[1757850202429,7.06,245.83,245.7,6.95]
[1757850202830,7.06,245.83,245.71,6.95]
[1757850205540,7.06,245.81,245.71,6.95]
[1757850213644,2.78675229,245.8,245.71,6.95]
[1757850213950,6.97,245.79,245.71,6.95]
[1757850216547,6.97,245.79,245.66,6.68]
[1757850217754,6.97,245.79,245.67,13.49906264]
[1757850217949,6.97,245.79,245.67,6.68]
[1757850218753,6.97,245.79,245.68,6.68]
[1757850221655,6.97,245.79,245.68,13.49906264]
[1757850221953,6.97,245.79,245.69,6.68]
[1757850224252,12.45967179,245.89,245.69,6.68]
[1757850224253,6.97,245.86,245.69,6.68]
[1757850224452,2.81371173,245.85,245.69,6.68]
[1757850224658,6.97,245.84,245.71,6.68]
[1757850229361,2.80778311,245.83,245.71,6.68]
[1757850229556,6.97,245.84,245.71,6.68]
[1757850229953,6.97,245.82,245.71,6.68]
[1757850231062,0.02595965,245.79,245.71,6.68]
[1757850235264,0.02595965,245.79,245.72,7.04]
[1757850236666,0.02595965,245.79,245.73,0.02836658]
[1757850237068,0.02595965,245.79,245.74,7.04]
[1757850237667,0.02595965,245.79,245.73,0.02836658]
[1757850237867,0.02595965,245.79,245.73,7.06836658]
[1757850238064,7.00595965,245.79,245.73,7.06836658]
[1757850238462,7.00595965,245.79,245.73,0.02836658]
[1757850238866,7.00595965,245.79,245.73,6.74836658]
[1757850239361,7.00595965,245.79,245.73,0.02836658]
[1757850240372,0.02595965,245.79,245.73,0.02836658]
[1757850240673,0.02595965,245.79,245.74,6.72]
[1757850240862,0.02595965,245.79,245.73,0.02836658]
[1757850241066,0.02595965,245.79,245.74,6.72]
[1757850241273,0.02595965,245.79,245.73,0.02836658]
[1757850241762,0.02595965,245.79,245.74,6.72]
[1757850242161,0.02595965,245.79,245.73,0.02836658]
[1757850242568,0.02595965,245.79,245.74,6.72]
[1757850242767,0.02595965,245.79,245.73,0.02836658]
[1757850243270,0.02595965,245.79,245.73,6.74836658]
[1757850246076,0.02595965,245.79,245.73,0.02836658]
[1757850246273,7.00595965,245.79,245.73,0.02836658]
[1757850252773,0.02595965,245.79,245.73,0.02836658]
[1757850252980,0.02595965,245.79,245.73,6.74836658]
[1757850253385,6.98,245.78,245.73,0.02836658]
[1757850253785,6.98,245.76,245.73,0.02836658]
[1757850253985,0.02595965,245.79,245.73,0.02836658]
[1757850254187,9.77666889,245.78,245.73,0.02836658]
[1757850254384,6.98,245.76,245.73,0.02836658]
[1757850254689,6.98,245.74,245.73,0.02836658]
[1757850256396,0.02595965,245.79,245.73,0.02836658]
[1757850256397,7.00595965,245.79,245.73,0.02836658]
[1757850281009,6.77,245.77,245.73,0.02836658]
[1757850281607,0.02595965,245.79,245.73,0.02836658]
[1757850281812,6.77,245.78,245.73,0.02836658]
[1757850282805,0.02595965,245.79,245.73,0.02836658]
[1757850283013,9.65602632,245.78,245.73,0.02836658]
[1757850283203,0.02595965,245.79,245.73,0.02836658]
[1757850283406,6.77,245.77,245.73,0.02836658]
[1757850283603,0.02595965,245.79,245.73,0.02836658]
[1757850284413,6.77,245.78,245.73,0.02836658]
[1757850285623,6.79595965,245.79,245.73,0.02836658]
[1757850294824,6.79595965,245.79,245.58,0.70832485]
[1757850294825,6.58,245.77,245.6,6.81906264]
[1757850295029,6.58,245.75,245.59,6.45]
[1757850295230,6.58,245.73,245.59,6.45]
[1757850295427,6.58,245.71,245.59,6.45]
[1757850295730,4.4953612,245.8,245.52,6.45]
[1757850295731,6.58,245.69,245.52,6.45]
[1757850296125,0.02809543,245.63,245.52,6.45]
[1757850298236,7.01,245.62,245.52,6.45]
[1757850300537,7.01,245.62,245.45,0.70872155]
[1757850300733,7.01,245.62,245.46,6.92]
[1757850301335,0.02804747,245.56,245.46,6.92]
[1757850302029,0.02804747,245.56,245.46,13.73906264]
[1757850302234,0.02804747,245.56,245.47,6.92]
[1757850302434,0.02804747,245.56,245.48,6.92]
[1757850302742,0.02804747,245.56,245.5,6.92]
[1757850303236,0.02804747,245.56,245.51,0.4]
[1757850303429,0.02804747,245.56,245.52,6.92]
[1757850304035,7.01,245.67,245.54,6.92]
[1757850305041,12.0152718,245.69,245.54,6.92]
[1757850305241,7.01,245.71,245.5,101.38]
[1757850305242,7.01,245.71,245.56,6.92]
[1757850305940,7.01,245.76,245.56,6.92]
[1757850306538,19.34754906,245.76,245.58,6.92]
[1757850307438,7.01,245.74,245.58,6.92]
[1757850310145,7.01,245.72,245.58,6.92]
[1757850313536,7.01,245.76,245.58,6.92]
[1757850317348,7.01,245.76,245.59,13.4]
[1757850317650,7.01,245.76,245.61,6.92]
[1757850319448,7.01,245.76,245.63,6.92]
[1757850323252,7.01,245.76,245.63,108.4]
[1757850323752,7.01,245.76,245.63,108.38]
[1757850323944,7.01,245.76,245.63,6.92]
[1757850324749,0.70826719,245.89,245.63,6.92]
[1757850324750,7.01,245.85,245.63,6.92]
[1757850326255,7.01,245.85,245.62,101.46]